bitfinex/quotes_ETHUSD_20250214
["timestamp","ask_amount","ask_price","bid_price","bid_amount"]
[1739532664599,3.70892,2696.2,2696.1,0.05494085]
[1739532664907,0.370892,2696.2,2695.4,3.70989]
[1739532665133,3.70934,2695.9,2695.4,3.70989]
[1739532665334,3.70951,2695.8,2695.2,3.71022]
[1739532665639,3.7097,2695.7,2695.3,0.371022]
[1739532665839,3.70977,2695.6,2695.1,3.7103]
[1739532666135,0.7563,2696.0,2695.1,3.7103]
[1739532666433,3.70891,2696.3,2695.7,0.55]
[1739532666642,3.70891,2696.3,2695.8,0.55]
[1739532666818,3.70823,2696.7,2695.8,0.55]
[1739532666819,3.70854,2696.5,2695.8,4.25947]
[1739532667007,7.41752,2696.4,2695.8,4.25947]
[1739532667212,3.70846,2696.6,2696.1,0.55]
[1739532667412,3.70846,2696.6,2696.1,4.25903]
[1739532667617,3.70825,2696.7,2696.1,4.25903]
[1739532668024,3.70849,2696.6,2696.0,3.7091]
[1739532668224,7.41698,2696.6,2696.0,3.7091]
[1739532668539,3.70814,2696.8,2696.2,4.2588]
[1739532668769,4.4642,2697.0,2696.2,4.2588]
[1739532668770,4.4642,2697.0,2696.2,5.11607996]
[1739532668904,3.70801,2696.9,2696.4,0.55]
[1739532669100,3.70814,2696.8,2696.4,0.55]
[1739532669313,3.70814,2696.8,2696.5,0.05449646]
[1739532669840,4.4642,2697.0,2696.5,0.05449646]
[1739532670196,3.70807,2696.9,2696.5,0.05449646]
[1739532670398,7.41612,2696.9,2696.5,0.05449646]
[1739532670644,7.41611,2696.9,2696.5,0.05449646]
[1739532670800,3.70774,2697.1,2696.6,0.55]
[1739532671003,3.70774,2697.1,2696.6,1.03629965]
[1739532671341,3.70774,2697.1,2696.7,0.05425494]
[1739532671663,3.70778,2697.1,2696.7,0.05425494]
[1739532671927,3.70754,2697.2,2696.7,0.05425494]
[1739532672080,3.70769,2697.1,2696.7,0.05425494]
[1739532672382,3.70705,2697.6,2696.7,0.05425494]
[1739532672383,3.707,2697.6,2696.9,0.0075]
[1739532672691,3.70699,2697.7,2697.1,4.25757]
[1739532672898,3.70699,2697.7,2697.2,0.05340823]
[1739532673238,3.70696,2697.7,2697.2,0.05340823]
[1739532673563,3.70708,2697.6,2697.2,0.05340823]
[1739532673741,3.70667,2697.9,2697.2,0.05340823]
[1739532673937,3.70667,2697.9,2697.3,4.25732]
[1739532674137,3.70636,2698.1,2697.5,0.55]
[1739532674550,3.7066,2697.9,2697.6,0.05287265]
[1739532675769,3.70673,2697.8,2697.6,0.05287265]
[1739532675970,3.7066,2697.9,2697.6,0.05287265]
[1739532676297,3.70679,2697.8,2697.6,0.05287265]
[1739532676861,4.46238,2698.3,2697.6,0.05287265]
[1739532677198,3.70668,2697.9,2697.6,0.05287265]
[1739532677600,3.70654,2698.0,2697.6,0.05287265]
[1739532677802,3.70631,2698.1,2697.6,3.75979265]
[1739532678005,3.70631,2698.1,2697.6,0.05287265]
[1739532678303,3.70675,2697.8,2697.6,0.05287265]
[1739532678653,7.41306,2698.0,2697.6,0.05287265]
[1739532679004,3.70667,2697.9,2697.6,0.05287265]
[1739532680397,3.70658,2697.9,2697.6,0.05287265]
[1739532681298,3.70652,2698.0,2697.6,0.05287265]
[1739532681676,7.41307,2698.0,2697.6,0.05287265]
[1739532681999,3.70665,2697.9,2697.6,0.05287265]
[1739532682377,3.70658,2697.9,2697.6,0.05287265]
[1739532682879,3.70652,2698.0,2697.6,0.05287265]
[1739532683079,4.152468,2698.2,2697.6,0.05287265]
[1739532683265,7.858748,2698.2,2697.6,0.05287265]
[1739532683600,4.152468,2698.2,2697.7,0.55]
[1739532683800,3.70623,2698.2,2697.7,0.55]
[1739532684006,3.70632,2698.1,2697.8,0.05249754]
[1739532684206,7.41272,2698.1,2697.7,0.55]
[1739532684408,7.41272,2698.1,2697.9,0.05237689]
[1739532684607,3.70632,2698.1,2697.8,0.05218065]
[1739532684803,3.70632,2698.1,2698.0,0.05193936]
[1739532685004,3.70632,2698.1,2697.9,0.05206]
[1739532685206,7.41275,2698.1,2698.0,0.05193936]
[1739532685504,3.70632,2698.1,2697.7,4.25683]
[1739532685704,3.70632,2698.1,2697.8,0.05218065]
[1739532685869,3.70632,2698.1,2697.7,0.55]
[1739532686069,3.70632,2698.1,2697.8,0.05218065]
[1739532686312,7.41272,2698.1,2697.7,0.55]
[1739532686610,3.70654,2698.0,2697.8,0.47786965]
[1739532686813,0.7563,2698.3,2697.8,0.05218065]
[1739532687020,3.70631,2698.1,2697.8,0.05218065]
[1739532687214,3.70631,2698.1,2697.6,4.25698]
[1739532687389,3.70645,2698.0,2697.9,0.05206]
[1739532687909,3.70645,2698.0,2697.6,4.25698]
[1739532687910,3.70645,2698.0,2697.6,0.55]
[1739532688115,3.70645,2698.0,2697.5,3.70712]
[1739532688116,3.70673,2697.8,2697.7,0.05230131]
[1739532688314,4.51463,2697.8,2697.2,4.13854482]
[1739532688612,3.70724,2697.5,2697.3,0.05266083]
[1739532688812,3.70727,2697.4,2697.3,0.05266083]
[1739532689018,3.70727,2697.4,2696.8,3.70801]
[1739532689019,3.70744,2697.3,2696.8,3.70801]
[1739532689378,3.70704,2697.6,2696.9,3.70795]
[1739532689616,3.70687,2697.7,2696.7,2.93812083]
[1739532689617,0.8079,2697.8,2697.1,0.55]
[1739532689818,3.70694,2697.7,2697.2,3.70754]
[1739532690311,4.51463,2697.8,2697.2,3.70754]
[1739532690513,4.51463,2697.8,2697.3,3.70737]
[1739532690728,3.70651,2698.0,2697.4,3.70716]
[1739532690907,3.70651,2698.0,2697.5,0.920716]
[1739532691109,3.70651,2698.0,2697.6,3.70699]
[1739532691312,0.8079,2698.1,2697.5,0.920716]
[1739532691495,7.41301,2698.0,2697.5,0.920716]
[1739532691703,3.70646,2698.0,2697.5,4.627736]
[1739532692099,3.70661,2697.9,2697.5,0.920716]
[1739532692298,0.8079,2698.1,2697.6,3.70698]
[1739532692502,0.8079,2698.1,2697.7,4.25676]
[1739532692905,0.8079,2698.1,2697.7,0.55]
[1739532693307,4.51423,2698.1,2697.7,0.55]
[1739532693836,0.8079,2698.1,2697.7,0.55]
[1739532693990,0.8079,2698.1,2697.7,4.25679]
[1739532694193,0.8079,2698.1,2697.7,5.13651946]
[1739532694502,4.51422,2698.1,2697.7,1.42972946]
[1739532694910,3.7061,2698.3,2697.8,3.70672]
[1739532695117,3.7061,2698.3,2697.7,8.84334946]
[1739532695322,3.7061,2698.3,2697.8,3.70672]
[1739532695523,0.7512,2698.4,2697.8,4.59104195]
[1739532695524,4.45711,2698.4,2697.8,4.59104195]
[1739532695694,0.7512,2698.4,2697.9,3.70657]
[1739532696033,4.45716,2698.4,2697.8,3.70672]
[1739532696236,4.45716,2698.4,2697.8,3.70664]
[1739532696439,3.70605,2698.3,2697.8,3.70664]
[1739532696999,0.7512,2698.4,2697.8,3.70664]
[1739532697228,4.4571,2698.4,2697.9,0.425664]
[1739532697435,0.7512,2698.4,2697.9,0.425664]
[1739532697733,3.70612,2698.3,2697.9,0.425664]
[1739532699250,3.7063,2698.2,2697.7,0.55]
[1739532699541,3.70632,2698.1,2697.6,3.7069]
[1739532699843,3.70611,2698.3,2697.7,3.70684]
[1739532700043,0.7512,2698.4,2697.7,0.55]
[1739532700252,3.70631,2698.1,2697.7,0.55]
[1739532700749,3.70631,2698.1,2697.8,0.05200467]
[1739532701151,7.41218,2698.3,2697.8,3.7067]
[1739532701322,3.70633,2698.1,2697.9,0.05188402]
[1739532701646,4.45717,2698.4,2697.8,3.70659]
[1739532701823,3.70627,2698.2,2698.0,0.05176338]
[1739532702024,3.70627,2698.2,2697.7,3.70675]
[1739532702434,3.70627,2698.2,2697.8,0.05200467]
[1739532702649,4.902847,2698.4,2697.8,0.05200467]
[1739532702850,3.7061,2698.3,2697.8,3.70661]
[1739532703012,0.7512,2698.4,2697.9,0.05188402]
[1739532703214,3.70591,2698.4,2697.9,3.75840402]
[1739532703718,3.70591,2698.4,2697.9,7.46490402]
[1739532703927,3.70591,2698.4,2697.9,3.75838402]
[1739532704155,3.70591,2698.4,2697.9,7.46489402]
[1739532704447,3.70591,2698.4,2698.0,3.70642]
[1739532704855,3.70591,2698.4,2698.1,0.05164275]
[1739532705874,3.70591,2698.4,2697.9,3.7065]
[1739532706385,3.70625,2698.2,2698.0,0.05172467]
[1739532706561,3.70625,2698.2,2697.8,4.25668]
[1739532706767,3.70586,2698.5,2698.1,0.05160404]
[1739532706930,3.706,2698.4,2697.9,3.70657]
[1739532707134,7.41173,2698.5,2698.2,0.05148342]
[1739532707333,3.70596,2698.4,2697.9,3.70657]
[1739532707531,3.70596,2698.4,2698.3,0.0513628]
[1739532707773,3.70586,2698.5,2698.0,3.70632]
[1739532707972,0.8018,2698.6,2698.3,0.0513628]
[1739532708177,4.50743,2698.6,2698.1,3.70628]
[1739532708376,4.50743,2698.6,2698.4,0.0512422]
[1739532708542,4.50743,2698.6,2698.1,3.70628]
[1739532708738,4.50743,2698.6,2698.5,0.0511216]
[1739532708943,4.50743,2698.6,2698.1,7.41247]
[1739532709181,3.0,2698.8,2698.5,0.0510055]
[1739532709339,3.7055,2698.7,2698.1,3.70621]
[1739532709539,3.7055,2698.7,2698.3,3.70603]
[1739532709540,3.70554,2698.7,2698.3,3.70603]
[1739532710059,3.70541,2698.8,2698.4,0.0511261]
[1739532710737,4.50702,2698.9,2698.4,3.7570061]
[1739532710939,8.21231,2698.9,2698.4,3.7570061]
[1739532711139,4.50702,2698.9,2698.4,3.7570061]
[1739532711344,8.21232,2698.9,2698.4,3.7570061]
[1739532711602,4.50702,2698.9,2698.4,3.7570061]
[1739532712181,0.8018,2698.9,2698.4,3.7570061]
[1739532712385,3.70537,2698.8,2698.4,0.0511261]
[1739532712587,3.70555,2698.7,2698.4,0.0511261]
[1739532712772,3.70537,2698.8,2698.2,4.25609]
[1739532712982,7.41083,2698.8,2698.5,0.0510055]
[1739532713173,7.41084,2698.8,2698.3,3.70602]
[1739532713377,3.70551,2698.7,2698.6,0.05088492]
[1739532713591,3.70537,2698.8,2698.6,0.05088492]
[1739532713889,3.70544,2698.8,2698.3,3.70603]
[1739532714096,3.70544,2698.8,2698.7,0.05076434]
[1739532714265,3.70544,2698.8,2698.3,0.8387719]
[1739532714464,3.70544,2698.8,2698.7,0.05076434]
[1739532714654,3.70544,2698.8,2698.3,0.8387719]
[1739532714853,3.70544,2698.8,2698.7,0.05076434]
[1739532715091,3.70544,2698.8,2698.3,4.5447919]
[1739532715596,4.50703,2698.9,2698.4,3.7569261]
[1739532716094,3.70537,2698.8,2698.4,3.7569261]
[1739532716293,0.8018,2698.9,2698.4,3.7569161]
[1739532716459,4.50704,2698.9,2698.4,3.7569161]
[1739532717288,4.50704,2698.9,2698.4,0.0511261]
[1739532717485,3.70541,2698.8,2698.4,0.48184771]
[1739532717687,3.70524,2698.9,2698.4,4.13658161]
[1739532717997,3.70524,2698.9,2698.5,3.75666403]
[1739532718196,5.82954021,2699.1,2698.5,3.75666403]
[1739532718398,3.70514,2699.0,2698.5,3.75667403]
[1739532718598,5.82954021,2699.1,2698.5,4.54600659]
[1739532718801,5.02104021,2699.1,2698.6,3.70562]
[1739532719009,1.31604021,2699.1,2698.6,3.70562]
[1739532719178,5.02104021,2699.1,2698.7,0.05067286]
[1739532720801,3.7051,2699.0,2698.7,0.05067286]
[1739532721116,5.02108021,2699.1,2698.4,3.70584]
[1739532721271,3.7052,2699.0,2698.8,0.04838579]
[1739532721470,3.7052,2699.0,2698.5,4.076334]
[1739532721672,3.7052,2699.0,2698.5,0.370584]
[1739532721899,3.7052,2699.0,2698.5,4.076334]
[1739532722086,3.7052,2699.0,2698.6,0.04862694]
[1739532723385,3.70522,2698.9,2698.6,0.04862694]
[1739532723591,3.70507,2699.0,2698.6,0.04862694]
[1739532724681,0.7579,2699.0,2698.6,0.04862694]
[1739532724874,3.70536,2698.8,2698.3,3.70603]
[1739532725091,3.70536,2698.8,2698.4,0.04886812]
[1739532725490,3.70536,2698.8,2698.3,3.70592]
[1739532725717,3.70535,2698.8,2698.4,0.04886812]
[1739532726118,3.70548,2698.7,2698.4,0.04886812]
[1739532726324,3.70569,2698.6,2698.4,0.04886812]
[1739532726496,3.70576,2698.5,2698.1,14.0]
[1739532726695,3.70576,2698.5,2698.0,3.70644]
[1739532726909,3.70576,2698.5,2698.2,0.04910933]
[1739532727104,3.70576,2698.5,2698.1,0.41987396]
[1739532727307,3.70576,2698.5,2698.3,0.04898872]
[1739532727506,3.70579,2698.5,2698.2,0.04910933]
[1739532728029,3.70562,2698.6,2698.2,0.04910933]
[1739532728951,3.70558,2698.7,2698.2,0.04910933]
[1739532729242,3.70562,2698.6,2698.2,0.04910933]
[1739532729738,3.70563,2698.6,2698.2,0.04910933]
[1739532729943,3.70565,2698.6,2698.2,0.83235066]
[1739532730247,3.70558,2698.7,2698.2,0.83235066]
[1739532730431,3.70563,2698.6,2698.2,0.83235066]
[1739532731541,7.41116,2698.7,2698.2,4.53849066]
[1739532731844,7.41114,2698.7,2698.2,4.53849066]
[1739532732109,3.70567,2698.6,2698.2,0.83235066]
[1739532732275,3.70571,2698.6,2698.2,0.04910933]
[1739532732956,3.70556,2698.7,2698.2,0.04910933]
[1739532733124,3.70575,2698.6,2698.2,0.04910933]
[1739532734056,3.70556,2698.7,2698.2,3.75524933]
[1739532734361,0.7579,2699.0,2698.2,3.75524933]
[1739532734362,3.70589,2698.5,2698.2,0.04910933]
[1739532734535,3.70589,2698.4,2698.2,0.04910933]
[1739532734736,0.7579,2698.6,2697.9,7.413]
[1739532734737,0.7579,2698.6,2698.0,3.70643]
[1739532734935,3.70559,2698.7,2698.2,3.70612]
[1739532735140,3.70559,2698.7,2698.1,4.49700957]
[1739532735141,3.7057,2698.6,2698.3,0.04918534]
[1739532735326,3.70576,2698.5,2698.1,4.447583]
[1739532735528,3.70576,2698.5,2698.2,0.04931297]
[1739532736169,3.70548,2698.7,2697.8,3.70659]
[1739532736331,3.70638,2698.1,2697.6,3.70692]
[1739532736531,3.70596,2698.4,2697.7,3.70686]
[1739532736727,3.70607,2698.3,2697.8,3.70658]
[1739532736966,3.70607,2698.3,2697.8,4.52289543]
[1739532737167,3.70607,2698.3,2697.8,0.81631543]
[1739532737368,3.70624,2698.2,2697.8,0.81631543]
[1739532737676,7.41219,2698.3,2697.8,4.52302543]
[1739532737890,3.70625,2698.2,2697.8,0.81631543]
[1739532738173,3.70625,2698.2,2697.7,3.70679]
[1739532738531,3.70625,2698.2,2697.8,3.70671]
[1739532739134,3.7061,2698.3,2697.8,3.70671]
[1739532739874,3.70591,2698.4,2697.9,3.70654]
[1739532740046,3.70616,2698.3,2697.8,3.70671]
[1739532740380,3.70617,2698.2,2697.8,3.70671]
[1739532740737,0.7579,2698.6,2697.8,4.52297243]
[1739532741100,3.7062,2698.2,2697.8,4.52304243]
[1739532742677,3.70608,2698.3,2697.8,4.52304243]
[1739532743174,3.70625,2698.2,2697.8,0.81633243]
[1739532743800,3.70608,2698.3,2697.8,0.81633243]
[1739532743997,3.70584,2698.5,2697.9,3.70646]
[1739532744174,3.70598,2698.4,2697.9,3.70646]
[1739532744519,4.47087,2698.8,2697.9,0.82294924]
[1739532744728,3.7056,2698.7,2698.1,3.70623]
[1739532744865,3.7056,2698.7,2698.1,3.70631]
[1739532745072,4.47086,2698.8,2698.2,3.70617]
[1739532745436,4.47086,2698.8,2698.2,3.70608]
[1739532745585,4.47086,2698.8,2698.3,0.04933984]
[1739532745898,3.70548,2698.7,2698.3,0.04933984]
[1739532746062,3.70548,2698.7,2698.2,3.70611]
[1739532746063,3.70559,2698.7,2698.2,3.70611]
[1739532746397,3.70536,2698.8,2698.3,3.75526984]
[1739532747158,3.70511,2699.0,2698.4,3.70586]
[1739532747388,3.70511,2699.0,2698.5,3.75476864]
[1739532748699,3.70511,2699.0,2698.5,0.04909864]
[1739532748913,1.31604021,2699.1,2698.6,0.37549586]
[1739532748914,5.02098021,2699.1,2698.6,0.37549586]
[1739532749202,5.02098021,2699.1,2698.7,0.04885748]
[1739532749370,5.02098021,2699.1,2698.7,3.75430748]
[1739532749371,1.31604021,2699.1,2698.7,3.75430748]
[1739532749983,1.31604021,2699.1,2698.7,0.04885748]
[1739532750166,3.70515,2699.0,2698.7,0.04885748]
[1739532751414,3.70515,2699.0,2698.5,7.41139]
[1739532751567,3.70515,2699.0,2698.8,0.04859647]
[1739532751767,3.70515,2699.0,2698.5,8.152529]
[1739532752067,3.70515,2699.0,2698.9,0.04847591]
[1739532752288,3.70515,2699.0,2698.5,4.446819]
[1739532752493,3.70515,2699.0,2698.9,0.04847591]
[1739532752704,3.70515,2699.0,2698.5,8.152509]
[1739532753012,3.70515,2699.0,2698.6,0.8152509]
[1739532753178,3.70515,2699.0,2698.6,3.75444761]
[1739532753401,5.02098021,2699.1,2698.6,3.75444761]
[1739532753579,1.31604021,2699.1,2698.7,3.70542]
[1739532754205,5.02098021,2699.1,2698.8,0.04859647]
[1739532754572,5.02098021,2699.1,2698.6,3.70555]
[1739532754783,5.02098021,2699.1,2698.9,0.04847591]
[1739532754998,5.02098021,2699.1,2698.7,0.370555]
[1739532755184,5.02098021,2699.1,2699.0,0.04835536]
[1739532755384,1.31604021,2699.1,2698.7,0.370555]
[1739532755583,1.31604021,2699.1,2699.0,0.04835536]
[1739532755788,1.31604021,2699.1,2698.8,3.70533]
[1739532756023,1.31604021,2699.1,2699.0,0.04835536]
[1739532756184,1.31604021,2699.1,2698.9,0.04847591]
[1739532756383,1.31604021,2699.1,2699.0,0.04835536]
[1739532756824,1.31604021,2699.1,2698.8,4.4834635]
[1739532757024,1.31604021,2699.1,2699.0,0.04835536]
[1739532757225,1.31604021,2699.1,2698.9,0.04847591]
[1739532757415,1.31604021,2699.1,2699.0,0.04835536]
[1739532757815,1.31604021,2699.1,2698.8,0.7781435]
[1739532758032,1.31604021,2699.1,2699.0,0.0480464]
[1739532758213,1.31604021,2699.1,2698.9,0.04816695]
[1739532758389,1.31604021,2699.1,2699.0,0.0480464]
[1739532758929,1.31604021,2699.1,2698.7,3.7054]
[1739532759385,1.31604021,2699.1,2698.8,0.04828751]
[1739532759591,1.31604021,2699.1,2698.9,0.37536875]
[1739532760020,1.31604021,2699.1,2699.0,0.0480464]
[1739532761033,1.31604021,2699.1,2698.7,3.7054]
[1739532761226,5.02097021,2699.1,2699.0,0.0480464]
[1739532761529,1.31604021,2699.1,2698.7,3.70547]
[1739532761832,1.31604021,2699.1,2698.8,0.370547]
[1739532762028,1.31604021,2699.1,2698.8,0.41883451]
[1739532763653,1.31604021,2699.1,2698.8,4.12414451]
[1739532764738,1.31604021,2699.1,2698.8,7.82937451]
[1739532764909,1.31604021,2699.1,2698.8,4.12406451]
[1739532765109,1.31604021,2699.1,2698.9,0.41240645]
[1739532765510,1.31604021,2699.1,2699.0,0.0480464]
[1739532766157,1.31604021,2699.1,2698.7,3.70542]
[1739532766352,5.02100021,2699.1,2698.8,0.04828751]
[1739532766655,1.31604021,2699.1,2698.7,3.70535]
[1739532766865,3.70481,2699.2,2698.9,0.04816695]
[1739532767039,3.70481,2699.2,2698.8,0.04828751]
[1739532767236,3.70481,2699.2,2699.0,0.0480464]
[1739532767442,3.70481,2699.2,2698.9,0.04816695]
[1739532767642,3.70481,2699.2,2699.1,0.04792586]
[1739532767839,3.70481,2699.2,2699.0,0.04789904]
[1739532768029,3.70481,2699.2,2698.7,4.446509]
[1739532768030,3.70481,2699.2,2699.1,0.0477785]
[1739532768459,3.70481,2699.2,2698.8,4.5205349]
[1739532768669,3.70481,2699.2,2699.1,0.0477785]
[1739532768841,3.70481,2699.2,2698.8,4.5205349]
[1739532769165,3.7046,2699.4,2698.8,4.5205349]
[1739532769360,3.7046,2699.4,2698.9,0.04801959]
[1739532769697,3.70466,2699.3,2698.9,0.04801959]
[1739532769867,3.70482,2699.2,2698.9,0.04801959]
[1739532770632,3.70482,2699.2,2698.7,3.70546]
[1739532770827,3.70482,2699.2,2699.0,0.04789904]
[1739532771033,3.70482,2699.2,2698.7,3.70546]
[1739532771235,3.70482,2699.2,2699.1,0.0477785]
[1739532771756,3.70463,2699.4,2698.8,4.446429]
[1739532771956,3.70474,2699.3,2698.9,0.04801959]
[1739532773071,3.70463,2699.4,2698.9,0.04801959]
[1739532773273,3.7048,2699.2,2698.9,0.04801959]
[1739532773980,3.7048,2699.2,2699.0,0.04789904]
[1739532774179,3.7048,2699.2,2698.7,3.70547]
[1739532774381,3.7048,2699.2,2698.8,0.78923815]
[1739532774970,7.40968,2699.2,2698.8,0.78923815]
[1739532775380,3.70463,2699.4,2698.8,4.49456815]
[1739532775584,3.70481,2699.2,2698.8,4.49456815]
[1739532775765,3.70481,2699.2,2698.8,0.78923815]
[1739532776082,3.705,2699.1,2698.8,0.78923815]
[1739532776377,4.46886,2699.0,2698.8,0.04814015]
[1739532776552,4.46886,2699.0,2698.5,3.70568]
[1739532776737,4.46886,2699.0,2698.6,0.04825847]
[1739532776935,4.46886,2699.0,2698.6,3.70562]
[1739532777138,0.7637,2699.0,2698.7,0.04813789]
[1739532777582,3.70495,2699.1,2698.7,0.79406868]
[1739532777783,4.46858,2699.2,2698.8,3.70534]
[1739532777992,4.46858,2699.2,2698.9,0.04789676]
[1739532778146,8.17346,2699.2,2698.9,0.04789676]
[1739532778346,8.17346,2699.2,2698.7,4.45140079]
[1739532778542,8.17346,2699.2,2698.8,0.04801732]
[1739532778780,4.46858,2699.2,2698.7,4.45140079]
[1739532778989,8.17345,2699.2,2698.8,0.04801732]
[1739532779162,3.70501,2699.1,2698.8,0.04801732]
[1739532779344,3.70501,2699.1,2698.7,0.74593079]
[1739532779544,3.70501,2699.1,2698.8,0.04801732]
[1739532779760,3.70501,2699.1,2698.7,4.45140079]
[1739532779957,3.70501,2699.1,2698.8,0.04801732]
[1739532780180,3.70501,2699.1,2698.7,0.74593079]
[1739532780345,3.70515,2699.0,2698.8,0.04801732]
[1739532780545,3.70494,2699.1,2698.6,3.70562]
[1739532780781,3.70494,2699.1,2698.7,0.04813789]
[1739532781698,3.70518,2699.0,2698.7,0.04813789]
[1739532782056,3.70518,2699.0,2698.5,3.70563]
[1739532782253,3.70522,2698.9,2698.8,0.04806993]
[1739532782495,3.70509,2699.0,2698.0,3.70644]
[1739532782496,3.70578,2698.5,2698.0,3.70644]
[1739532782823,3.70578,2698.5,2697.9,8.95648]
[1739532782824,0.7637,2698.5,2698.3,3.70597]
[1739532782999,4.46887,2699.0,2698.5,3.70572]
[1739532783497,0.7637,2699.0,2698.6,0.04842688]
[1739532783695,0.7637,2699.0,2698.6,3.75402688]
[1739532783857,0.7637,2699.0,2698.6,0.74598269]
[1739532784056,4.93389068,2698.8,2698.7,0.04830631]
[1739532784258,5.69759068,2698.8,2698.7,0.04830631]
[1739532784471,5.69759068,2698.8,2698.0,3.70635]
[1739532784472,3.70583,2698.5,2698.0,3.70635]
[1739532784679,7.41169,2698.5,2698.0,3.70635]
[1739532784884,3.70604,2698.3,2698.1,0.94464735]
[1739532785093,4.48914,2698.3,2698.1,0.04901235]
[1739532785391,0.7831,2698.3,2697.9,8.95657]
[1739532785592,0.7831,2698.3,2698.0,0.04913298]
[1739532788506,4.48925,2698.3,2698.0,0.04913298]
[1739532789084,4.48925,2698.3,2697.8,3.70672]
[1739532789270,4.48925,2698.3,2698.1,0.04901235]
[1739532789470,4.48925,2698.3,2697.8,3.70671]
[1739532789807,0.7831,2698.3,2698.2,0.04889173]
[1739532789980,4.4892,2698.3,2697.8,3.70671]
[1739532790186,4.4892,2698.3,2697.9,0.04925362]
[1739532790507,4.4892,2698.3,2697.8,3.70669]
[1739532790709,4.4892,2698.3,2698.0,0.04913298]
[1739532791011,4.4892,2698.3,2698.1,0.04901235]
[1739532791513,4.4892,2698.3,2698.2,0.04889173]
[1739532791903,0.7831,2698.3,2697.9,3.70648]
[1739532792081,0.7831,2698.3,2698.2,0.04889173]
[1739532792282,0.7831,2698.3,2697.9,3.70648]
[1739532792485,4.48915,2698.3,2698.2,0.04889173]
[1739532792688,4.48915,2698.3,2697.9,3.70648]
[1739532792888,0.7831,2698.3,2698.2,0.04889173]
[1739532793087,0.7831,2698.3,2697.9,3.70648]
[1739532793088,0.7831,2698.3,2697.6,0.74935648]
[1739532793309,0.7831,2698.3,2698.2,0.04889173]
[1739532793515,4.48913,2698.3,2697.8,3.7066]
[1739532793696,4.48913,2698.3,2698.2,0.04889173]
[1739532793897,0.7831,2698.3,2697.9,4.447799]
[1739532794083,0.7831,2698.3,2698.2,0.04889173]
[1739532794283,0.7831,2698.3,2697.9,3.70646]
[1739532794692,0.7831,2698.3,2698.0,3.75582627]
[1739532794873,0.7831,2698.3,2698.1,3.7063]
[1739532795074,0.7831,2698.3,2698.1,0.04927564]
[1739532795274,0.7831,2698.3,2697.9,7.41295]
[1739532795469,0.7831,2698.3,2698.2,0.04915502]
[1739532795709,0.7831,2698.3,2697.9,3.70646]
[1739532797016,0.7831,2698.3,2698.0,0.04939627]
[1739532797312,0.7831,2698.3,2698.2,0.04915502]
[1739532797486,0.7831,2698.3,2698.1,0.04927564]
[1739532797675,0.7831,2698.3,2698.2,0.04915502]
[1739532797871,4.48882,2698.6,2698.1,3.70618]
[1739532798214,0.7831,2698.6,2698.2,0.04915502]
[1739532798376,0.7831,2698.6,2698.2,3.75522502]
[1739532798576,0.7831,2698.6,2698.2,4.50138352]
[1739532798977,4.48873,2698.6,2698.2,4.50138352]
[1739532799515,4.48845,2698.8,2698.3,3.70594]
[1739532799875,4.48845,2698.8,2698.4,0.04904719]
[1739532800314,3.70554,2698.7,2698.4,0.04904719]
[1739532800610,3.70549,2698.7,2698.4,0.04904719]
[1739532800784,3.70549,2698.7,2698.2,4.4522385]
[1739532800990,3.70549,2698.7,2698.5,0.04892659]
[1739532801185,3.70549,2698.7,2698.2,3.70606]
[1739532801411,3.70549,2698.7,2698.6,0.04880601]
[1739532801612,0.8245,2698.7,2697.9,3.70648]
[1739532801813,0.8245,2698.7,2698.0,4.49727815]
[1739532801814,3.70582,2698.5,2698.0,4.49727815]
[1739532802478,3.70565,2698.6,2698.0,4.49721815]
[1739532802680,3.70565,2698.6,2698.1,3.70624]
[1739532803119,3.70578,2698.5,2698.2,0.04928489]
[1739532803495,3.70578,2698.5,2698.0,4.447692]
[1739532803675,3.70578,2698.5,2698.3,0.04916428]
[1739532803982,3.70578,2698.5,2698.0,7.41274]
[1739532804180,3.70578,2698.5,2698.4,0.04904368]
[1739532804589,4.53001,2698.7,2698.4,0.04904368]
[1739532804919,3.70563,2698.6,2698.1,3.7063]
[1739532805210,3.70563,2698.6,2698.5,0.04892308]
[1739532805371,4.53001,2698.7,2698.2,3.70607]
[1739532805574,4.53001,2698.7,2698.5,0.04892308]
[1739532805873,4.53001,2698.7,2698.6,0.0488025]
[1739532806073,0.8245,2698.7,2698.6,0.0488025]
[1739532806274,4.52998,2698.7,2698.2,3.70607]
[1739532806517,0.8245,2698.7,2698.6,0.0488025]
[1739532806715,0.8245,2698.7,2698.2,3.70607]
[1739532806918,4.52998,2698.7,2698.6,0.0488025]
[1739532807080,4.52998,2698.7,2698.2,3.70607]
[1739532807316,4.52998,2698.7,2698.6,0.04875685]
[1739532807516,4.52998,2698.7,2698.2,3.70607]
[1739532807732,4.52998,2698.7,2698.6,0.04875685]
[1739532807916,4.52998,2698.7,2698.3,3.70602]
[1739532808414,0.8245,2698.7,2698.4,3.70577]
[1739532808615,4.52959,2699.0,2698.5,3.75455499]
[1739532808945,0.8245,2699.0,2698.6,3.70556]
[1739532809316,0.8245,2699.0,2698.7,0.04865383]
[1739532809518,0.8245,2699.2,2698.8,3.70533]
[1739532809739,0.8245,2699.2,2698.8,3.75386326]
[1739532809941,0.8245,2699.2,2698.8,4.49980559]
[1739532810332,4.5293,2699.2,2698.8,4.49980559]
[1739532810744,4.5293,2699.2,2698.8,0.79447559]
[1739532810944,8.23418,2699.2,2698.8,0.79447559]
[1739532811160,3.70496,2699.1,2698.8,0.79447559]
[1739532811532,3.70496,2699.1,2698.8,0.04853326]
[1739532811853,3.70496,2699.1,2698.6,3.7055]
[1739532812054,3.70496,2699.1,2698.9,0.04819859]
[1739532812227,3.70496,2699.1,2698.7,3.70546]
[1739532812441,3.70496,2699.1,2698.8,0.04832266]
[1739532812648,3.70496,2699.1,2698.7,3.70546]
[1739532812933,3.70496,2699.1,2698.9,0.0482021]
[1739532813133,3.70496,2699.1,2698.8,0.04832266]